bitfinex/quotes_ETHUSD_20230119
["timestamp","ask_amount","ask_price","bid_price","bid_amount"]
[1674097691205,21.83996679,1524.7,1524.3,4.544]
[1674097691419,2.18399668,1524.6,1524.3,4.544]
[1674097691622,15.30250668,1524.6,1524.3,4.544]
[1674097692011,15.36850668,1524.6,1524.3,4.54058397]
[1674097692914,15.36850668,1524.6,1524.3,3.0]
[1674097693127,1.53685067,1524.5,1524.3,3.0]
[1674097695929,2.22448866,1524.5,1524.2,22.91743563]
[1674097696296,1.53685067,1524.5,1524.2,22.91743563]
[1674097696446,7.31273799,1524.6,1524.2,22.91743563]
[1674097697246,8.34059213,1524.6,1524.2,22.91743563]
[1674097697764,7.31273799,1524.6,1524.2,22.91743563]
[1674097698076,7.31273799,1524.6,1524.2,29.47824563]
[1674097698291,3.08962808,1524.6,1524.2,36.03905563]
[1674097698599,0.68763799,1524.6,1524.2,36.03905563]
[1674097698824,10.24184093,1524.7,1524.2,36.03905563]
[1674097699388,9.21398679,1524.7,1524.2,36.03905563]
[1674097700450,10.24184093,1524.7,1524.2,29.47824563]
[1674097700656,9.70481624,1524.6,1524.2,22.91743563]
[1674097700902,9.18402422,1524.6,1524.2,22.91743563]
[1674097701075,7.31296799,1524.6,1524.2,22.91743563]
[1674097701450,8.34082213,1524.6,1524.2,22.91743563]
[1674097701600,7.31296799,1524.6,1524.2,22.91743563]
[1674097701810,8.34082213,1524.6,1524.2,22.91743563]
[1674097702243,7.31296799,1524.6,1524.2,22.91743563]
[1674097702491,8.34082213,1524.6,1524.2,22.91743563]
[1674097703120,17.3737612,1524.6,1524.2,22.91743563]
[1674097703910,3.22724706,1524.6,1524.2,29.47814563]
[1674097704082,0.68763799,1524.6,1524.2,29.47814563]
[1674097704292,1.27459206,1524.6,1524.2,29.47814563]
[1674097704508,2.27349213,1524.7,1524.3,1.542]
[1674097704716,2.27349213,1524.7,1524.4,1.0]
[1674097704717,2.20749213,1524.7,1524.4,1.0]
[1674097704924,1.17963799,1524.7,1524.4,1.0]
[1674097705156,0.68763799,1524.7,1524.4,18.66081]
[1674097705487,1.27458951,1524.7,1524.5,1.866081]
[1674097705705,1.27458951,1524.7,1524.4,18.72681]
[1674097706011,1.27458951,1524.7,1524.4,11.16686]
[1674097707994,0.18763799,1524.7,1524.4,12.16686]
[1674097708200,0.7600742,1524.7,1524.4,14.42370485]
[1674097708429,0.7600742,1524.7,1524.4,23.12520485]
[1674097709152,14.43615414,1524.8,1524.4,23.12520485]
[1674097709328,14.43615414,1524.8,1524.4,21.58420485]
[1674097709547,20.99445414,1524.8,1524.4,15.02434485]
[1674097709794,0.57235261,1524.7,1524.4,12.7675]
[1674097710164,1.60020675,1524.7,1524.4,12.7675]
[1674097711220,17.15248153,1524.8,1524.4,12.7675]
[1674097711464,8.84637186,1524.7,1524.4,12.7675]
[1674097711657,15.92664229,1524.7,1524.4,12.7675]
[1674097712498,0.57245517,1524.6,1524.4,12.7675]
[1674097712719,7.13163517,1524.6,1524.4,3.066]
[1674097712931,0.71316352,1524.5,1524.3,3.066]
[1674097713150,0.71316352,1524.5,1524.3,3.0]
[1674097713947,0.066,1524.6,1524.3,3.0]
[1674097714159,17.30284207,1524.7,1524.3,3.0]
[1674097714398,0.57250212,1524.6,1524.3,3.0]
[1674097715291,2.73199268,1524.6,1524.2,1.64723563]
[1674097715614,7.13224212,1524.5,1524.2,0.03723563]
[1674097715834,6.62574,1524.5,1524.2,0.03723563]
[1674097715982,15.56262803,1524.5,1524.2,0.03723563]
[1674097716879,9.00288803,1524.5,1524.2,0.03723563]
[1674097717456,9.00266803,1524.5,1524.2,0.03723563]
[1674097717722,6.62552,1524.5,1524.2,0.03723563]
[1674097717874,7.31338539,1524.5,1524.2,0.03723563]
[1674097719087,1.26049321,1524.4,1524.2,0.03723563]
[1674097719980,8.34123953,1524.5,1524.2,0.03723563]
[1674097720239,10.21777019,1524.5,1524.2,0.03723563]
[1674097721564,9.18991605,1524.5,1524.2,0.03723563]
[1674097722527,2.63039605,1524.5,1524.2,0.03723563]
[1674097722774,2.56439605,1524.5,1524.2,0.03723563]
[1674097725168,0.68786539,1524.4,1524.2,0.03723563]
[1674097725412,1.70304441,1524.4,1524.2,0.03723563]
[1674097725627,0.68786539,1524.4,1524.2,0.03723563]
[1674097725934,10.21779019,1524.5,1524.2,0.03723563]
[1674097726359,0.68786539,1524.4,1524.2,0.03723563]
[1674097726577,9.18993605,1524.5,1524.2,0.03723563]
[1674097726976,0.91899361,1524.4,1524.2,0.03723563]
[1674097728582,1.606859,1524.4,1524.2,0.03723563]
[1674097729248,0.91899361,1524.4,1524.2,0.03723563]
[1674097729634,0.91899361,1524.4,1524.2,0.03513541]
[1674097729795,1.606859,1524.4,1524.2,0.03513541]
[1674097730405,2.63471314,1524.4,1524.2,0.03513541]
[1674097730882,0.26347131,1524.3,1524.2,0.03513541]
[1674097731088,2.63471314,1524.4,1524.2,1.07513541]
[1674097731327,0.91899361,1524.4,1524.2,1.07513541]
[1674097731457,1.71571953,1524.5,1524.2,1.07513541]
[1674097731666,0.68786539,1524.5,1524.2,7.63587541]
[1674097731931,1.26046885,1524.5,1524.2,7.70187541]
[1674097732524,1.26046885,1524.5,1524.2,8.70187541]
[1674097733092,1.26046885,1524.5,1524.2,7.70187541]
[1674097733577,0.68786539,1524.5,1524.2,7.70187541]
[1674097733794,0.68786539,1524.5,1524.2,8.70187541]
[1674097734132,1.26045291,1524.5,1524.2,7.70187541]
[1674097734345,1.26045291,1524.5,1524.2,8.70187541]
[1674097734504,0.68786539,1524.6,1524.2,22.74491529]
[1674097734713,1.95894501,1524.7,1524.5,1.284]
[1674097734714,1.71571953,1524.7,1524.5,1.284]
[1674097735144,0.68786539,1524.7,1524.5,1.284]
[1674097735602,1.26009225,1524.7,1524.5,1.284]
[1674097736429,1.25800171,1524.7,1524.5,1.284]
[1674097736922,1.25800171,1524.7,1524.4,14.4769]
[1674097737172,1.25800171,1524.7,1524.5,6.55946]
[1674097737344,1.51985414,1524.8,1524.5,13.18498]
[1674097737556,1.58575414,1524.9,1524.5,13.18498]
[1674097737762,1.02785414,1524.9,1524.5,19.92464055]
[1674097737971,2.89574392,1525.0,1524.6,3.0]
[1674097738216,1.59994437,1524.9,1524.7,6.55865]
[1674097738426,1.59994437,1524.9,1524.7,6.62465]
[1674097739499,1.59994437,1524.9,1524.7,0.066]
[1674097739811,1.59994437,1524.9,1524.6,22.05346]
[1674097739978,1.59994437,1524.9,1524.6,25.39087056]
[1674097740632,0.57209023,1524.9,1524.6,25.39087056]
[1674097740825,2.89574392,1525.0,1524.6,25.39087056]
[1674097741052,0.57191929,1524.9,1524.6,25.39087056]
[1674097741896,1.59977343,1524.9,1524.6,25.39087056]
[1674097742088,0.57191929,1524.9,1524.6,25.39087056]
[1674097742316,2.89574392,1525.0,1524.6,25.39087056]
[1674097742524,0.57188376,1524.9,1524.6,25.39087056]
[1674097742732,1.5997379,1524.9,1524.6,25.39087056]
[1674097742948,2.96174392,1525.0,1524.6,25.39087056]
[1674097743175,0.5717974,1524.9,1524.6,25.39087056]
[1674097743349,2.40384392,1525.0,1524.6,25.39087056]
[1674097743702,2.97560237,1525.0,1524.6,25.39087056]
[1674097744413,1.59961259,1524.9,1524.6,25.39087056]
[1674097744605,1.02785414,1524.9,1524.6,25.39087056]
[1674097744817,1.59963903,1524.9,1524.6,25.39087056]
[1674097745688,1.59963903,1524.9,1524.6,15.4945]
[1674097746542,2.28661219,1524.9,1524.6,15.4945]
[1674097747214,0.68697316,1524.9,1524.6,22.05353]
[1674097747502,1.09385414,1525.0,1524.6,28.61262]
[1674097747503,0.68697316,1525.0,1524.6,28.61262]
[1674097747648,1.25842998,1525.0,1524.7,9.419892]
[1674097747844,1.25842998,1525.0,1524.7,7.62463]
[1674097748055,1.7808273,1525.1,1524.7,15.46729]
[1674097748264,1.7148273,1525.1,1524.8,4.0]
[1674097748528,2.28625484,1525.1,1524.8,10.55813]
[1674097748764,0.68697316,1525.1,1524.8,10.62413]
[1674097748890,1.25813964,1525.1,1524.8,10.62413]
[1674097749106,1.25813964,1525.1,1524.8,9.62413]
[1674097750193,1.25813964,1525.1,1524.9,1.0]
[1674097750403,1.25813964,1525.1,1524.8,16.1821]
[1674097750572,0.68697316,1525.1,1524.8,16.1821]
[1674097750787,0.68697316,1525.1,1524.8,9.62397]
[1674097751315,1.25786676,1525.1,1524.8,9.62397]
[1674097751580,0.68697316,1525.1,1524.8,9.62397]
[1674097751772,1.25786923,1525.1,1524.8,9.62397]
[1674097754384,9.77401485,1525.2,1524.8,9.62397]
[1674097754569,9.77401485,1525.2,1524.8,10.62397]
[1674097754570,20.01680949,1525.2,1524.8,10.62397]
[1674097754940,0.68697316,1525.1,1524.8,9.62397]
[1674097755253,11.10676448,1525.2,1524.8,9.62397]
[1674097755986,11.97185535,1525.2,1524.8,9.62397]
[1674097756163,1.19718554,1525.1,1524.8,9.62397]
[1674097757673,1.8841587,1525.1,1524.8,9.62397]
[1674097759140,1.8841587,1525.1,1524.8,3.066]
[1674097759301,1.8841587,1525.1,1524.8,3.0]
[1674097759516,2.91201284,1525.1,1524.8,3.0]
[1674097759728,0.29120128,1525.0,1524.8,3.0]
[1674097761447,0.97817444,1525.0,1524.8,3.0]
[1674097761660,1.54869857,1525.0,1524.8,3.0]
[1674097761873,0.29120128,1525.0,1524.8,3.0]
[1674097763978,1.54883018,1525.0,1524.8,3.0]
[1674097764143,0.97817444,1525.0,1524.8,3.0]
[1674097764514,0.29120128,1525.0,1524.8,3.0]
[1674097764912,0.97817444,1525.0,1524.8,3.0]
[1674097765127,0.97817444,1525.0,1524.7,10.6952]
[1674097765128,1.8607906,1524.9,1524.7,10.6952]
[1674097765321,9.7006106,1524.9,1524.7,10.6952]
[1674097765532,9.7666106,1524.9,1524.7,0.066]
[1674097765777,0.97666106,1524.8,1524.6,15.4945]
[1674097767885,2.27166106,1524.8,1524.6,12.49100645]
[1674097768054,0.22716611,1524.7,1524.6,12.49100645]
[1674097768472,1.30316611,1524.7,1524.6,12.49100645]
[1674097769135,0.22716611,1524.7,1524.6,12.49100645]
[1674097778797,0.91413927,1524.7,1524.6,12.49100645]
[1674097779006,3.80199417,1524.7,1524.6,0.066]
[1674097779231,3.80199417,1524.7,1524.3,36.42604]
[1674097779232,3.60702101,1524.7,1524.3,36.42604]
[1674097779448,2.93379709,1524.6,1524.3,36.42604]
[1674097779650,2.36179633,1524.6,1524.3,36.42604]
[1674097780011,2.54565294,1524.5,1524.3,0.066]
[1674097780220,1.33056529,1524.4,1524.2,0.03513541]
[1674097786795,1.076,1524.4,1524.2,0.03513541]
[1674097787638,16.03809633,1524.6,1524.2,0.03513541]
[1674097789211,16.03809633,1524.6,1524.2,0.0330121]
[1674097789422,17.91985291,1524.6,1524.2,0.0330121]
[1674097789795,16.03809633,1524.6,1524.2,0.0330121]
[1674097789957,1.60380963,1524.5,1524.2,0.0330121]
[1674097793049,1.60380963,1524.5,1524.2,13.1543721]
[1674097793355,0.87219942,1524.6,1524.2,13.2203721]
[1674097801725,1.55979633,1524.6,1524.2,13.2203721]
[1674097802587,2.58765047,1524.6,1524.2,13.2203721]
[1674097802841,0.25876505,1524.5,1524.2,6.6595621]
[1674097806908,8.97695633,1524.6,1524.2,6.6595621]
[1674097807947,10.00481047,1524.6,1524.2,6.6595621]
[1674097808212,8.97695633,1524.6,1524.2,6.6595621]
[1674097808634,1.25919609,1524.5,1524.2,0.0990121]
[1674097808948,6.68586961,1524.4,1524.2,0.0330121]
[1674097809286,7.24396961,1524.4,1524.2,0.0330121]
[1674097809475,6.75186961,1524.4,1524.2,0.0330121]
[1674097810727,0.19191961,1524.4,1524.2,0.0330121]
[1674097810956,0.68759691,1524.5,1524.2,0.0330121]
[1674097811159,1.25907626,1524.5,1524.2,0.0330121]
[1674097813784,10.49681047,1524.6,1524.2,0.0330121]
[1674097813953,1.04968105,1524.5,1524.2,0.0330121]
[1674097814523,1.73727796,1524.5,1524.2,0.0330121]
[1674097814834,1.04968105,1524.5,1524.2,0.0330121]
[1674097815965,1.24559691,1524.6,1524.2,6.5937721]
[1674097816178,9.34266382,1524.7,1524.2,19.25689204]
[1674097816385,1.78145105,1524.7,1524.3,3.2206892]
[1674097816615,1.71545105,1524.7,1524.4,13.11982]
[1674097816787,0.68759691,1524.7,1524.4,13.18582]
[1674097817238,0.68759691,1524.7,1524.4,26.08852]
[1674097817663,1.25944365,1524.7,1524.4,26.08852]
[1674097818001,0.68759691,1524.7,1524.4,30.487994]
[1674097818136,0.68759691,1524.8,1524.5,3.0]
[1674097818352,0.68759691,1524.9,1524.6,14.41318]
[1674097818660,1.2596071,1524.9,1524.7,1.0]
[1674097818889,0.68759691,1524.9,1524.7,7.55838]
[1674097819118,0.68759691,1524.9,1524.7,6.62438]
[1674097819329,0.68759691,1524.9,1524.7,8.8800999]
[1674097819544,1.71545105,1525.0,1524.7,8.8800999]
[1674097820031,2.28692564,1525.0,1524.7,8.8800999]
[1674097820300,2.28692564,1525.0,1524.7,15.4387599]
[1674097820647,0.68759691,1525.0,1524.7,27.2589599]
[1674097821286,1.71545105,1525.0,1524.7,20.7002999]
[1674097821501,2.28655696,1525.0,1524.7,20.7002999]
[1674097821735,1.71545105,1525.0,1524.7,20.7002999]
[1674097822482,1.71545105,1525.0,1524.7,18.44458]
[1674097822483,2.2865637,1525.0,1524.7,18.44458]
[1674097823546,0.68759691,1525.0,1524.7,18.44458]
[1674097823711,1.25850786,1525.0,1524.7,18.44458]
[1674097823926,0.68759691,1525.0,1524.7,18.44458]
[1674097824896,2.28636737,1525.0,1524.7,18.44458]
[1674097825137,3.44439808,1525.0,1524.7,18.44458]
[1674097825445,4.16848176,1525.0,1524.7,11.8862]
[1674097826334,10.72591176,1525.0,1524.7,11.8862]
[1674097826545,10.79191176,1525.0,1524.7,11.8862]
[1674097826836,1.25841111,1524.9,1524.7,11.8862]
[1674097828054,2.39468371,1524.9,1524.7,11.8862]
[1674097828388,1.82386951,1524.9,1524.7,11.8862]
[1674097831849,1.82386951,1524.9,1524.7,0.066]
[1674097831850,9.67373951,1524.9,1524.7,0.066]
[1674097832171,9.67373951,1524.9,1524.5,23.3756]
[1674097832172,1.25825046,1524.8,1524.5,23.3756]
[1674097832326,8.78395441,1524.8,1524.5,23.3756]
[1674097832534,10.307155,1524.8,1524.5,23.3756]
[1674097832848,9.307155,1524.8,1524.5,23.3756]
[1674097833096,0.37020316,1524.7,1524.5,23.3756]
[1674097833323,1.33793898,1524.7,1524.5,23.3756]
[1674097834336,0.37020316,1524.7,1524.5,23.3756]
[1674097837300,0.37020316,1524.7,1524.5,29.93506]
[1674097837756,0.37020316,1524.7,1524.5,36.49458]
[1674097837980,0.37020316,1524.7,1524.5,29.93506]
[1674097848773,0.37020316,1524.7,1524.5,36.49458]
[1674097848976,0.37020316,1524.7,1524.5,41.455975]
[1674097850262,0.3668725,1524.7,1524.6,16.11818]
[1674097850452,0.3668725,1524.7,1524.6,16.18418]
[1674097863804,0.3668725,1524.7,1524.6,9.62509]
[1674097864146,0.68759691,1524.8,1524.6,9.62509]
[1674097865585,1.71545105,1524.8,1524.6,9.62509]
[1674097865998,2.28741751,1524.8,1524.6,9.62509]
[1674097867263,0.68759691,1524.8,1524.6,9.62509]
[1674097870145,1.71545105,1524.8,1524.6,9.62509]
[1674097870364,0.68759691,1524.7,1524.6,9.62509]
[1674097870525,0.68759691,1524.7,1524.6,0.066]
[1674097870741,1.71545105,1524.7,1524.5,29.93481]
[1674097870949,1.71593759,1524.7,1524.5,29.93481]
[1674097871171,2.2881558,1524.7,1524.5,29.93481]
[1674097871771,0.68808345,1524.7,1524.5,29.93481]
[1674097872251,0.68808345,1524.7,1524.5,23.3756]
[1674097872613,0.68808345,1524.7,1524.5,29.93509]
[1674097873032,1.05449522,1524.7,1524.5,29.93282767]
[1674097873238,1.05449522,1524.7,1524.5,23.37333767]
[1674097873451,2.08234936,1524.7,1524.5,23.37333767]
[1674097875527,2.08234936,1524.7,1524.5,12.9299]
[1674097875741,0.20823494,1524.6,1524.5,12.9299]
[1674097876366,0.20823494,1524.6,1524.5,0.066]
[1674097876586,0.20823494,1524.6,1524.4,6.62568]
[1674097878103,0.68808345,1524.7,1524.4,6.62568]
[1674097878522,1.71593759,1524.8,1524.4,14.03303351]
[1674097878888,1.71593759,1524.8,1524.6,6.55909]
[1674097878889,0.68808345,1524.8,1524.6,6.55909]
[1674097879196,1.58575414,1524.9,1524.6,6.62509]
[1674097879197,2.77987221,1524.9,1524.6,6.62509]
[1674097879413,3.66968157,1524.9,1524.6,6.62509]
[1674097879566,2.64182743,1524.9,1524.7,1.0]
[1674097879779,2.64182743,1524.9,1524.6,13.18418]
[1674097880033,3.66968157,1524.9,1524.6,13.18418]
[1674097880255,3.66968157,1524.9,1524.6,25.63838]
[1674097880560,0.68808345,1524.9,1524.6,25.63838]
[1674097880778,1.26000175,1524.9,1524.6,25.63838]
[1674097881617,1.26000175,1524.9,1524.7,1.0]
[1674097881828,1.26000175,1524.9,1524.7,7.55863]
[1674097882039,8.10085414,1525.0,1524.7,14.18329]
[1674097882040,0.75408345,1525.0,1524.7,14.18329]
[1674097882212,0.68808345,1525.0,1524.7,15.47729]
[1674097882426,1.25994167,1525.0,1524.7,15.47729]
[1674097882645,0.68808345,1525.0,1524.7,15.47729]
[1674097885183,1.59949297,1525.1,1524.7,19.355748]
[1674097885184,1.71593759,1525.1,1524.7,19.355748]
[1674097885374,0.68808345,1525.1,1524.7,19.355748]
[1674097885584,2.28742102,1525.1,1524.7,19.355748]
[1674097885811,2.28742102,1525.1,1524.7,29.236348]
[1674097886361,2.28742102,1525.1,1524.7,28.236348]
[1674097886521,0.68808345,1525.0,1524.7,24.35789]
[1674097886743,0.68808345,1525.0,1524.7,23.06389]
[1674097886937,1.25949136,1525.0,1524.7,23.06389]
[1674097888344,0.68808345,1525.0,1524.7,23.06389]
[1674097888556,1.25948368,1525.0,1524.7,23.06389]
[1674097889610,2.28733782,1525.0,1524.7,23.06389]
[1674097889974,0.68808345,1525.0,1524.7,23.06389]
[1674097890330,1.25954564,1525.0,1524.7,23.06389]
[1674097891500,0.68808345,1525.0,1524.7,23.06389]
[1674097891659,1.25949035,1525.0,1524.7,23.06389]
[1674097891866,2.79220834,1525.1,1524.7,23.06389]
[1674097892549,1.25940565,1525.0,1524.7,23.06389]
[1674097892769,1.53862648,1525.0,1524.7,23.06389]
[1674097892917,0.96730428,1525.0,1524.7,23.06389]
[1674097894421,0.96730428,1525.0,1524.7,23.06172741]
[1674097896189,0.96730428,1525.0,1524.7,16.50306741]
[1674097896400,0.09673043,1524.9,1524.7,9.9466]
[1674097896595,1.3560663,1524.9,1524.7,9.9466]
[1674097896809,0.78481388,1524.9,1524.7,9.9466]
[1674097898486,0.78481388,1524.9,1524.7,0.066]
[1674097898696,0.07848139,1524.8,1524.6,19.07929]
[1674097901779,0.09673043,1524.9,1524.6,25.63838]
[1674097907058,0.96730428,1525.0,1524.6,25.63838]
[1674097907644,0.27922083,1525.0,1524.6,26.48422962]
[1674097907908,1.7839,1525.1,1524.7,0.56219248]
[1674097908123,0.4919,1525.1,1524.7,14.67906248]
[1674097908295,8.27918013,1525.2,1524.7,21.68637284]
[1674097908633,8.27918013,1525.2,1524.7,21.68598836]
[1674097908806,8.27918013,1525.2,1524.7,30.73633675]
[1674097909174,8.27918013,1525.2,1524.7,29.89092322]
[1674097909385,10.61439633,1525.2,1524.7,29.89092322]
[1674097909723,11.64225047,1525.2,1524.7,29.89092322]
[1674097910080,0.68808345,1525.1,1524.7,29.89092322]
[1674097910431,11.64225047,1525.2,1524.7,29.89092322]
[1674097910645,0.68808345,1525.1,1524.7,26.23327]
[1674097911440,1.25949008,1525.1,1524.7,26.23327]
[1674097914332,2.28734422,1525.1,1524.7,19.67468]
[1674097914501,0.81403246,1525.0,1524.7,19.67468]
[1674097916086,0.68808345,1525.0,1524.7,19.67468]
[1674097916531,1.25954776,1525.0,1524.7,19.67468]
[1674097917439,0.68808345,1524.9,1524.7,13.1164]
[1674097917647,1.25954776,1524.9,1524.7,10.1164]
[1674097917881,1.61738795,1524.9,1524.7,10.1164]
[1674097918072,1.04592364,1524.9,1524.7,10.1164]
[1674097921045,0.35784019,1524.9,1524.7,10.1164]
[1674097922154,3.00693759,1525.0,1524.7,10.1164]
[1674097922155,1.97908345,1525.0,1524.7,10.1164]
[1674097923410,1.97908345,1525.0,1524.7,16.67494]
[1674097928522,1.09385414,1525.1,1524.7,23.2336]
[1674097928523,1.78193759,1525.1,1524.7,23.2336]
[1674097928725,0.68808345,1525.1,1524.8,2.32336]
[1674097928906,1.25975195,1525.1,1524.8,2.32336]
[1674097929252,0.68808345,1525.1,1524.9,6.5578]
[1674097929416,0.68808345,1525.1,1524.9,6.6238]
[1674097930012,0.86508013,1525.2,1524.9,6.6238]
[1674097930136,0.79908013,1525.2,1524.9,6.6238]
[1674097930345,0.79908013,1525.2,1524.9,13.1816]
[1674097930556,0.68808345,1525.1,1524.9,6.6238]
[1674097930766,1.82693427,1525.2,1524.9,6.6238]
[1674097931085,0.68808345,1525.1,1524.9,6.6238]
[1674097931764,1.25962849,1525.1,1524.9,6.6238]
[1674097932620,0.68808345,1525.1,1524.9,6.6238]
[1674097932920,0.11099668,1525.2,1525.1,7.59982425]
[1674097933234,0.11099668,1525.2,1525.1,8.66582425]
[1674097933663,0.11099668,1525.2,1525.1,7.66582425]
[1674097934529,0.11099668,1525.2,1525.1,19.03217068]
[1674097934703,0.11099668,1525.2,1525.1,22.03217068]
[1674097934910,0.11099668,1525.2,1525.1,23.32617068]
[1674097935755,0.11062494,1525.3,1525.2,2.22590332]
[1674097935999,0.11062494,1525.3,1525.2,21.92292332]
[1674097936210,0.11062494,1525.3,1525.2,23.44051916]
[1674097936596,0.11062494,1525.3,1525.2,33.69191916]
[1674097938003,0.11062494,1525.3,1525.2,33.20011916]
[1674097950317,0.11062494,1525.3,1525.2,32.09021584]
[1674097952410,0.11062494,1525.3,1525.2,30.80021584]
[1674097955255,0.11062494,1525.3,1525.2,28.76442]
[1674097956143,0.11062494,1525.3,1525.2,27.47042]
[1674097957991,0.10721932,1525.3,1525.2,27.47042]
[1674097958591,0.10721932,1525.3,1525.2,28.76442]
[1674097965298,0.10721932,1525.3,1525.2,40.76492]
[1674097965506,0.10721932,1525.3,1525.2,44.04807584]
[1674097971088,0.10721932,1525.3,1525.2,42.75407584]
[1674097972163,0.10721932,1525.3,1525.2,44.19466212]
[1674097974129,0.10721932,1525.3,1525.2,44.87699221]
[1674097975647,0.10721932,1525.3,1525.2,46.17099221]
[1674097976382,0.10721932,1525.3,1525.2,55.03439142]
[1674097976942,0.10721932,1525.3,1525.2,54.35206133]
[1674097978097,0.10721932,1525.3,1525.2,55.03597392]
[1674097980147,0.26829114,1525.3,1525.2,55.03597392]
[1674097980569,0.26829114,1525.3,1525.2,54.01508471]
[1674097981152,0.26560839,1525.3,1525.2,54.01508471]
[1674097981514,0.26560839,1525.3,1525.2,55.03597392]
[1674097981831,0.1242891,1525.4,1525.2,55.03597392]
[1674097981832,0.1242891,1525.4,1525.2,54.69241287]
[1674097982193,0.1242891,1525.4,1525.3,18.99337193]
[1674097982408,0.1242891,1525.4,1525.3,21.03412454]
[1674097982772,0.1242891,1525.4,1525.3,20.35062628]
[1674097982987,0.1242891,1525.4,1525.3,21.03412454]
[1674097983304,0.1293113,1525.5,1525.3,22.05937193]
[1674097983645,0.1293113,1525.5,1525.4,6.78678212]
[1674097983817,0.1293113,1525.5,1525.4,19.96408212]
[1674097984033,0.1293113,1525.5,1525.4,20.82382347]
[1674097985078,0.1293113,1525.5,1525.4,22.78932173]
[1674097985342,0.1286363,1525.6,1525.5,1.0]
[1674097985675,0.11963005,1525.7,1525.5,19.60594312]
[1674097985975,0.11963005,1525.7,1525.6,17.37312739]
[1674097986186,0.11963005,1525.7,1525.6,20.02712739]
[1674097986360,0.11099668,1525.8,1525.6,24.17002458]
[1674097986568,0.11099668,1525.8,1525.7,2.292]
[1674097986911,0.11099668,1525.8,1525.7,14.10872]
[1674097987075,0.11099668,1525.8,1525.7,29.89162]
[1674097987446,0.11099668,1525.8,1525.7,31.6235]
[1674097987764,0.11099668,1525.8,1525.7,41.4193]
[1674097988937,0.11099668,1525.8,1525.7,41.41674433]
[1674097995420,0.11099668,1525.8,1525.7,38.68486433]
[1674098012182,0.11099668,1525.8,1525.7,41.45655258]
[1674098012519,0.10789292,1525.8,1525.7,41.45655258]
[1674098013569,0.10789292,1525.8,1525.7,40.58070474]
[1674098014204,0.10789292,1525.8,1525.7,40.58071618]
[1674098014352,0.10789292,1525.8,1525.7,45.51853337]
[1674098014562,2.92e-06,1525.8,1525.7,46.3943861]
[1674098015855,2.92e-06,1525.8,1525.7,45.51853337]
[1674098016195,2.92e-06,1525.8,1525.7,46.39484833]
[1674098016764,2.92e-06,1525.8,1525.7,45.51853337]
[1674098017036,2.92e-06,1525.8,1525.7,38.68486433]
[1674098024020,2.92e-06,1525.8,1525.7,16.17216433]
[1674098034317,1.29300292,1525.8,1525.7,0.066]
[1674098034491,1.29300292,1525.8,1525.6,6.62079]
[1674098034842,0.12930029,1525.7,1525.6,6.62079]
[1674098035785,0.12930029,1525.7,1525.6,9.62079]
[1674098036838,1.29300292,1525.8,1525.6,9.62079]
[1674098036997,1.29300292,1525.8,1525.6,16.17558]
[1674098043298,2.92e-06,1525.8,1525.7,3.0]
[1674098043509,0.14619484,1525.9,1525.8,2.23444458]
[1674098043785,0.14619484,1525.9,1525.8,15.64230458]
[1674098043946,0.14619484,1525.9,1525.8,18.70830458]
[1674098045265,0.14619484,1525.9,1525.8,20.18926225]
[1674098045399,0.13534524,1526.1,1525.8,21.89615366]
[1674098045720,0.15935677,1526.2,1525.9,22.86484819]
[1674098045929,0.15935677,1526.2,1526.0,1.60431972]
[1674098046136,0.15935677,1526.2,1526.1,26.2106]
[1674098046348,0.15935677,1526.2,1526.1,41.95292379]
[1674098061513,6.77e-06,1526.2,1526.1,43.74424113]
[1674098063968,6.77e-06,1526.2,1526.1,43.23492379]
[1674098065088,6.77e-06,1526.2,1526.1,41.95292379]
[1674098065302,6.77e-06,1526.2,1526.1,39.1442]
[1674098070334,6.77e-06,1526.2,1526.1,22.72395]
[1674098070571,1.28800677,1526.2,1526.1,22.72395]
[1674098070925,6.77e-06,1526.2,1526.1,22.72395]
[1674098074751,6.77e-06,1526.2,1526.1,16.1713]
[1674098075603,6.77e-06,1526.2,1526.1,9.61865]
[1674098076911,6.77e-06,1526.2,1526.1,16.1713]
[1674098080907,6.77e-06,1526.2,1526.1,16.77619949]
[1674098083600,6.77e-06,1526.2,1526.1,19.26509143]
[1674098084000,6.77e-06,1526.2,1526.1,20.14242808]
[1674098084316,6.77e-06,1526.2,1526.1,19.26509143]
[1674098084526,6.77e-06,1526.2,1526.1,19.26197917]
[1674098084823,6.77e-06,1526.2,1526.1,19.26198483]
[1674098087464,6.77e-06,1526.2,1526.1,16.77309289]
[1674098092987,6.77e-06,1526.2,1526.1,16.16818774]
[1674098094351,6.77e-06,1526.2,1526.1,9.61553774]
[1674098096622,6.77e-06,1526.2,1526.1,3.066]
[1674098096832,6.77e-06,1526.2,1526.1,3.0]
[1674098097150,0.17670326,1526.2,1526.1,3.0]
[1674098097573,2.40778671,1526.2,1526.0,0.066]
[1674098097783,2.40778671,1526.2,1525.9,29.50967]
[1674098097992,0.24077867,1526.1,1525.9,6.61947]
[1674098098609,1.543,1526.0,1525.9,0.066]
[1674098098877,1.543,1526.0,1525.7,0.066]
[1674098099092,1.531,1525.8,1525.6,7.49834259]
[1674098099401,1.531,1525.8,1525.6,6.62049]
[1674098100800,1.531,1525.8,1525.6,0.066]
[1674098100969,1.531,1525.8,1525.5,28.87037]
[1674098101180,0.1531,1525.7,1525.5,28.87037]
[1674098101585,1.6961,1525.7,1525.5,0.066]
[1674098101795,1.6961,1525.7,1525.5,3.0]
[1674098102005,0.16961,1525.6,1525.5,3.0]
[1674098102317,0.1531,1525.7,1525.5,10.16012707]
[1674098102553,4.3886,1525.9,1525.5,9.62122]
[1674098102798,2.0226,1525.9,1525.5,16.17644]
[1674098102953,2.23146,1525.9,1525.5,16.17644]
[1674098103329,1.73986,1525.9,1525.5,16.17644]
[1674098106527,0.20886,1525.9,1525.5,16.17644]
[1674098107366,1.75186,1525.9,1525.5,16.17644]
[1674098109420,1.74900602,1525.9,1525.5,16.17644]
[1674098109847,1.74900602,1525.9,1525.6,1.0]
[1674098110188,1.74900602,1525.9,1525.6,14.10905]
[1674098110416,1.74900602,1525.9,1525.6,13.17505]
[1674098112711,1.74900602,1525.9,1525.6,13.17305]
[1674098112866,1.74900602,1525.9,1525.6,13.17505]
[1674098113081,1.74900602,1525.9,1525.6,14.17505]
[1674098113310,1.543,1525.9,1525.6,14.17505]
[1674098114597,1.543,1525.9,1525.6,13.17505]
[1674098115392,0.4916,1526.0,1525.6,13.17505]
[1674098115603,1.543,1526.1,1525.7,3.0]
[1674098115852,1.543,1526.1,1525.8,19.66155]